Workbook

Sheet Four Tiers
C1: Calculation of Four Tier Carried Interest Model Using Excel and Custom VBA Function
C2: Created by: | D2: Scott Dunphy | N2: The function, called CarriedInterest, is entered in cell N6. The inputs are dealDates, dealCashFlows, hurdleRate1, lpDistRatio1, gpDistRatio1, hurdleRate2, lpDistRatio2, gpDistRatio2, hurdleRate3, lpDistRatio3, gpDistRatio3, lpDistRatio4, gpDistRatio4). The function returns all the summary statistics shown below in a 6 x 4 matrix. To view the code behind the custom function press Alt + F11 to enter the VBA code editor.
C3: ="In this four tier model the cash flows are split "&TEXT(tier1_lp_split,"0%")&" to the LP and "&TEXT(tier1_gp_split,"0%")&" to the GP until the LP earns an "&TEXT(tier1_return,"0%")&" return on their investment. Next, remaining cash flows are split "&TEXT(tier2_lp_split,"0%")&" to the LP and "&TEXT(tier2_gp_split,"0%")&" to the GP, until the LP earns a "&TEXT(tier2_return,"0%")&" return on their investment. Next, remaining cash flows are split "&TEXT(tier3_lp_split,"0%")&" to the LP and "&TEXT(tier3_gp_split,"0%")&" to the GP, until the LP earns a "&TEXT(tier3_return,"0%")&" return on their investment. Finally, all remaining cash flow is split "&TEXT(tier4_lp_split,"0%")&" to the LP and "&TEXT(tier4_gp_split,"0%")&" to the GP." -> In this four tier model the cash flows are split 95% to the LP and 5% to the GP until the LP earns an 8% return on their investment. Next, remaining cash flows are split 80% to the LP and 20% to the GP, until the LP earns a 12% return on their investment. Next, remaining cash flows are split 70% to the LP and 30% to the GP, until the LP earns a 15% return on their investment. Finally, all remaining cash flow is split 50% to the LP and 50% to the GP.
E5: Distributions Ratios | I5: MANUAL CALC OUTPUT | N5: CARRIED INTEREST FUNCTION OUTPUT | S5: CHECKS
C6: Tier | D6: Hurdle Rate | E6: LP Split | F6: GP Split | G6: Daily Hurdle Rate | I6: Investor | J6: Deal | K6: LP | L6: GP | N6: =CarriedInterest(cf_dates,deal_cf,tier1_return,tier1_lp_split,tier1_gp_split,tier2_return,tier2_lp_split,tier2_gp_split,tier3_return,tier3_lp_split,tier3_gp_split,tier4_lp_split,tier4_gp_split) -> Investor | O6: Deal | P6: LP | Q6: GP | S6: Investor | T6: Deal | U6: LP | V6: GP
C7: First Tier | D7: 0.08 | E7: 0.95 | F7: =1-E7 -> 0.05 | G7: =(1+tier1_return)^(1/365)-1 -> 0.0002108743984 | I7: Profit | J7: =J10-J9 -> 289000000 | K7: =K10-K9 -> 174895390.6 | L7: =L10-L9 -> 114104609.4 | N7: Profit | O7: 289000000 | P7: 174895390.6 | Q7: 114104609.4 | S7: Profit | T7: =J7-O7 -> 0 | U7: =K7-P7 -> 0.001536816359 | V7: 0.001535639167
C8: Second Tier | D8: 0.12 | E8: 0.8 | F8: =1-E8 -> 0.2 | G8: =(1+tier2_return)^(1/365)-1 -> 0.0003105377557 | I8: XIRR | J8: =XIRR(deal_cf,cf_dates) -> 0.3551523268 | K8: =D81 -> 0.2689675629 | L8: =D82 -> 0.9526507735 | N8: XIRR | O8: 0.3551523268 | P8: 0.2689675629 | Q8: 0.9526507735 | S8: XIRR | T8: =J8-O8 -> 0 | U8: 0 | V8: 0
C9: Third Tier | D9: 0.15 | E9: 0.7 | F9: =1-E9 -> 0.3 | G9: =(1+tier3_return)^(1/365)-1 -> 0.0003829827503 | I9: Contributions | J9: =-SUMIF(deal_cf,"<0",deal_cf) -> 91000000 | K9: =-SUMIF(D76:O76,"<0",D76:O76) -> 86450000 | L9: =-SUMIF(D77:O77,"<0",D77:O77) -> 4550000 | N9: Contributions | O9: 91000000 | P9: 86450000 | Q9: 4550000 | S9: Contributions | T9: =J9-O9 -> 0 | U9: 0 | V9: 0
C10: Fourth Tier | D10: N/A | E10: 0.5 | F10: =1-E10 -> 0.5 | G10: N/A | I10: Distributions | J10: =SUMIF(deal_cf,">0",deal_cf) -> 380000000 | K10: =SUMIF(D76:O76,">0",D76:O76) -> 261345390.6 | L10: =SUMIF(D77:O77,">0",D77:O77) -> 118654609.4 | N10: Distributions | O10: 380000000 | P10: 261345390.6 | Q10: 118654609.4 | S10: Distributions | T10: =J10-O10 -> 0 | U10: 0.001536816359 | V10: 0.001535639167
I11: Multiple | J11: =J10/J9 -> 4.175824176 | K11: =K10/K9 -> 3.023081441 | L11: =L10/L9 -> 26.07793613 | N11: Multiple | O11: 4.175824176 | P11: 3.023081441 | Q11: 26.07793613 | S11: Multiple | T11: =J11-O11 -> 0 | U11: 1.777689107e-11 | V11: 3.375006941e-10
C13: Cash Flow Date | D13: 2023-06-30 | E13: 2023-07-25 | F13: 2023-10-29 | G13: 2024-03-15 | H13: 2025-03-14 | I13: 2025-09-10 | J13: 2026-03-03 | K13: 2026-07-07 | L13: 2027-04-07 | M13: 2027-05-16 | N13: 2027-12-31 | O13: 2028-07-22
C15: Property Cash Flows | D15: -50000000 | E15: -30000000 | F15: -1000000 | G15: 0 | H15: -10000000 | I15: 5000000 | J15: 5000000 | K15: 5000000 | L15: 5000000 | M15: 5000000 | N15: 5000000 | O15: 350000000
C17: LP Contribution | D17: =MIN(0,D15*$E$7) -> -47500000 | E17: -28500000 | F17: -950000 | G17: 0 | H17: -9500000 | I17: 0 | J17: 0 | K17: 0 | L17: 0 | M17: 0 | N17: 0 | O17: 0
C18: GP Contribution | D18: =MIN(0,D15-D17) -> -2500000 | E18: =MIN(0,E15-E17) -> -1500000 | F18: =MIN(0,F15-F17) -> -50000 | G18: =MIN(0,G15-G17) -> 0 | H18: -500000 | I18: 0 | J18: 0 | K18: 0 | L18: 0 | M18: 0 | N18: 0 | O18: 0
C20: First Tier
C21: Day Count | D21: 0 | E21: =E13-D13 -> 25 | F21: =F13-E13 -> 96 | G21: =G13-F13 -> 138 | H21: 364 | I21: 180 | J21: 174 | K21: 126 | L21: 274 | M21: 39 | N21: 229 | O21: 204
C23: Beginning Balance | D23: 0 | E23: =D27 -> 47500000 | F23: =E27 -> 76251048.04 | G23: 78760234.26 | H23: 81085635.71 | I23: =H27 -> 97054023.67 | J23: 96058346.89 | K23: 94898008.76 | L23: 92702988.84 | M23: =L27 -> 93466498.26 | N23: 89488264.06 | O23: 89165236.41
C24: Contributions | D24: =MAX(0,-D$17) -> 47500000 | E24: =MAX(0,-E$17) -> 28500000 | F24: 950000 | G24: 0 | H24: 9500000 | I24: 0 | J24: 0 | K24: 0 | L24: 0 | M24: 0 | N24: 0 | O24: 0
C25: Return Accrual | D25: =D23*((1+tier1_daily)^D21-1) -> 0 | E25: 251048.0429 | F25: 1559186.218 | G25: 2325401.454 | H25: 6468387.955 | I25: 3754323.221 | J25: 3589661.867 | K25: 2554980.081 | L25: 5513509.425 | M25: 771765.7927 | N25: 4426972.357 | O25: 3919021.261
C26: Tier 1 Distribution | D26: =-MIN(SUM(D23:D25),MAX(0,D15*tier1_lp_split)) -> 0 | E26: 0 | F26: 0 | G26: 0 | H26: 0 | I26: -4750000 | J26: -4750000 | K26: -4750000 | L26: -4750000 | M26: -4750000 | N26: -4750000 | O26: -93084257.67
C27: Ending Balance | D27: =SUM(D23:D26) -> 47500000 | E27: =SUM(E23:E26) -> 76251048.04 | F27: 78760234.26 | G27: 81085635.71 | H27: 97054023.67 | I27: 96058346.89 | J27: 94898008.76 | K27: 92702988.84 | L27: 93466498.26 | M27: 89488264.06 | N27: 89165236.41 | O27: 0
C29: LP Tier 1 Cash Flow | D29: =-D24-D26 -> -47500000 | E29: =-E24-E26 -> -28500000 | F29: -950000 | G29: 0 | H29: -9500000 | I29: 4750000 | J29: 4750000 | K29: 4750000 | L29: 4750000 | M29: 4750000 | N29: 4750000 | O29: 93084257.67
C30: GP Tier 2 Cash Flow | D30: =D29/tier1_lp_split*tier1_gp_split -> -2500000 | E30: -1500000 | F30: -50000 | G30: 0 | H30: -500000 | I30: 250000 | J30: 250000 | K30: 250000 | L30: 250000 | M30: 250000 | N30: 250000 | O30: 4899171.457
C32: LP IRR Check | D32: =XIRR(D29:O29,cf_dates) -> 0.07999999821 | E32: =ROUND(D32-tier1_return,6) -> 0
C33: GP IRR Check | D33: =XIRR(D30:O30,cf_dates) -> 0.07999999821 | E33: =ROUND(D33-tier1_return,6) -> 0
C35: Remaining Cash Flow | D35: =D15-D29-D30 -> 0 | E35: =E15-E29-E30 -> 0 | F35: 0 | G35: 0 | H35: 4.656612873e-10 | I35: -2.328306437e-10 | J35: -2.328306437e-10 | K35: -2.328306437e-10 | L35: -2.328306437e-10 | M35: -2.328306437e-10 | N35: -2.328306437e-10 | O35: 252016570.9
C37: Second Tier
C38: Day Count | D38: 0 | E38: =E13-D13 -> 25 | F38: =F13-E13 -> 96 | G38: 138 | H38: 364 | I38: 180 | J38: 174 | K38: 126 | L38: 274 | M38: 39 | N38: 229 | O38: 204
C40: Beginning Balance | D40: 0 | E40: =D45 -> 47500000 | F40: 76370141.04 | G40: 79630770.98 | H40: 83116907.93 | I40: 102562037.6 | J40: 103707238.4 | K40: 104714149.7 | L40: 104141931.6 | M40: 108639504.2 | N40: 105213027.2 | O40: 108216264.7
C41: Contributions | D41: =MAX(0,-D$17) -> 47500000 | E41: =MAX(0,-E$17) -> 28500000 | F41: 950000 | G41: 0 | H41: 9500000 | I41: 0 | J41: 0 | K41: 0 | L41: 0 | M41: 0 | N41: 0 | O41: 0
C42: Return Accrual | D42: =D40*((1+tier2_daily)^D38-1) -> 0 | E42: 370141.0423 | F42: 2310629.938 | G42: 3486136.946 | H42: 9945129.675 | I42: 5895200.798 | J42: 5756911.299 | K42: 4177781.885 | L42: 9247572.665 | M42: 1323522.954 | N42: 7753237.539 | O42: 7076139.185
C43: Tier 1 Distribution | D43: =D26 -> 0 | E43: =E26 -> 0 | F43: 0 | G43: 0 | H43: 0 | I43: -4750000 | J43: -4750000 | K43: -4750000 | L43: -4750000 | M43: -4750000 | N43: -4750000 | O43: -93084257.67
C44: Tier 2 Distribution | D44: =-MIN(D35*tier2_lp_split,SUM(D40:D43)) -> 0 | E44: 0 | F44: 0 | G44: 0 | H44: -3.725290298e-10 | I44: 1.862645149e-10 | J44: 1.862645149e-10 | K44: 1.862645149e-10 | L44: 1.862645149e-10 | M44: 1.862645149e-10 | N44: 1.862645149e-10 | O44: -22208146.25
C45: Ending Balance | D45: =SUM(D40:D44) -> 47500000 | E45: =SUM(E40:E44) -> 76370141.04 | F45: 79630770.98 | G45: 83116907.93 | H45: 102562037.6 | I45: 103707238.4 | J45: 104714149.7 | K45: 104141931.6 | L45: 108639504.2 | M45: 105213027.2 | N45: 108216264.7 | O45: 0
C47: LP Tier 2 Cash Flow | D47: =-D41-D44-D43 -> -47500000 | E47: =-E41-E44-E43 -> -28500000 | F47: -950000 | G47: 0 | H47: -9500000 | I47: 4750000 | J47: 4750000 | K47: 4750000 | L47: 4750000 | M47: 4750000 | N47: 4750000 | O47: 115292403.9
C48: GP Tier 2 Cash Flow | D48: =D30-D44/tier2_lp_split*tier2_gp_split -> -2500000 | E48: -1500000 | F48: -50000 | G48: 0 | H48: -500000 | I48: 250000 | J48: 250000 | K48: 250000 | L48: 250000 | M48: 250000 | N48: 250000 | O48: 10451208.02
C50: LP IRR Check | D50: =XIRR(D47:O47,cf_dates) -> 0.1199999988 | E50: =ROUND(D50-tier2_return,6) -> 0
C51: GP IRR Check | D51: =XIRR(D48:O48,cf_dates) -> 0.2328151405 | E51: =ROUND(D51-tier2_return,6) -> 0.112815 | F51: << Not expected to tie unless all the GP splits are the same for all tiers. Making all the GP splits the same is used to verify the model is calculating correctly.
C53: Remaining Cash Flow | D53: =D15-D47-D48 -> 0 | E53: =E15-E47-E48 -> 0 | F53: 0 | G53: 0 | H53: 0 | I53: 0 | J53: 0 | K53: 0 | L53: 0 | M53: 0 | N53: 0 | O53: 224256388.1
C55: Third Tier
C56: Day Count | D56: 0 | E56: =E13-D13 -> 25 | F56: =F13-E13 -> 96 | G56: 138 | H56: 364 | I56: 180 | J56: 174 | K56: 126 | L56: 274 | M56: 39 | N56: 229 | O56: 204
C58: Beginning Balance | D58: 0 | E58: =D64 -> 47500000 | F58: =E64 -> 76456888.3 | G58: =F64 -> 80269685.26 | H58: =G64 -> 84625321.69 | I58: =H64 -> 106781862.7 | J58: =I64 -> 109651224.7 | K58: =J64 -> 112455743.9 | L58: =K64 -> 113264363.9 | M58: =L64 -> 121043512.6 | N58: =M64 -> 118114676.3 | O58: =N64 -> 124189363.8
C59: Contributions | D59: =MAX(0,-D$17) -> 47500000 | E59: =MAX(0,-E$17) -> 28500000 | F59: 950000 | G59: 0 | H59: 9500000 | I59: 0 | J59: 0 | K59: 0 | L59: 0 | M59: 0 | N59: 0 | O59: 0
C60: Return Accrual | D60: =D58*((1+tier3_daily)^D56-1) -> 0 | E60: 456888.296 | F60: 2862796.965 | G60: 4355636.433 | H60: 12656540.98 | I60: 7619362.055 | J60: 7554519.163 | K60: 5558619.999 | L60: 12529148.73 | M60: 1821163.7 | N60: 10824687.44 | O60: 10089814.41
C61: Tier 1 Distribution | D61: =D43 -> 0 | E61: =E43 -> 0 | F61: 0 | G61: 0 | H61: 0 | I61: -4750000 | J61: -4750000 | K61: -4750000 | L61: -4750000 | M61: -4750000 | N61: -4750000 | O61: -93084257.67
C62: Tier 2 Distribution | D62: =D44 -> 0 | E62: =E44 -> 0 | F62: 0 | G62: 0 | H62: -3.725290298e-10 | I62: 1.862645149e-10 | J62: 1.862645149e-10 | K62: 1.862645149e-10 | L62: 1.862645149e-10 | M62: 1.862645149e-10 | N62: 1.862645149e-10 | O62: -22208146.25
C63: Tier 3 Distribution | D63: =-MIN(D53*tier3_lp_split,SUM(D58:D62)) -> 0 | E63: 0 | F63: 0 | G63: 0 | H63: 0 | I63: 0 | J63: 0 | K63: 0 | L63: 0 | M63: 0 | N63: 0 | O63: -18986774.24
C64: Ending Balance | D64: =SUM(D58:D63) -> 47500000 | E64: =SUM(E58:E63) -> 76456888.3 | F64: 80269685.26 | G64: 84625321.69 | H64: 106781862.7 | I64: 109651224.7 | J64: 112455743.9 | K64: 113264363.9 | L64: 121043512.6 | M64: 118114676.3 | N64: 124189363.8 | O64: 0
C66: LP Tier 2 Cash Flow | D66: =-D59-SUM(D61:D63) -> -47500000 | E66: =E47-E63 -> -28500000 | F66: -950000 | G66: 0 | H66: -9500000 | I66: 4750000 | J66: 4750000 | K66: 4750000 | L66: 4750000 | M66: 4750000 | N66: 4750000 | O66: 134279178.2
C67: GP Tier 2 Cash Flow | D67: =D48-D63/tier3_lp_split*tier3_gp_split -> -2500000 | E67: -1500000 | F67: -50000 | G67: 0 | H67: -500000 | I67: 250000 | J67: 250000 | K67: 250000 | L67: 250000 | M67: 250000 | N67: 250000 | O67: 18588396.98
C69: LP IRR Check | D69: =XIRR(D66:O66,cf_dates) -> 0.150000006 | E69: =ROUND(D69-tier3_return,6) -> 0
C70: GP IRR Check | D70: =XIRR(D67:O67,cf_dates) -> 0.3704881489 | E70: =ROUND(D70-tier3_return,6) -> 0.220488 | F70: << Not expected to tie unless all the GP splits are the same for all tiers. Making all the GP splits the same is used to verify the model is calculating correctly.
C72: Remaining Cash Flow | D72: =D15-D66-D67 -> 0 | E72: =E15-E66-E67 -> 0 | F72: 0 | G72: 0 | H72: 0 | I72: 0 | J72: 0 | K72: 0 | L72: 0 | M72: 0 | N72: 0 | O72: 197132424.9
C74: Fourth Tier / Final Cash Flow
C76: Final LP Cash Flow | D76: =D66+tier4_lp_split*D72 -> -47500000 | E76: -28500000 | F76: -950000 | G76: 0 | H76: -9500000 | I76: 4750000 | J76: 4750000 | K76: 4750000 | L76: 4750000 | M76: 4750000 | N76: 4750000 | O76: 232845390.6
C77: Final GP Cash Flow | D77: =D67+tier4_gp_split*D72 -> -2500000 | E77: -1500000 | F77: -50000 | G77: 0 | H77: -500000 | I77: 250000 | J77: 250000 | K77: 250000 | L77: 250000 | M77: 250000 | N77: 250000 | O77: 117154609.4
C79: Remaining Cash Flow | D79: =D15-D76-D77 -> 0 | E79: =E15-E76-E77 -> 0 | F79: 0 | G79: 0 | H79: 0 | I79: 0 | J79: 0 | K79: 0 | L79: 0 | M79: 0 | N79: 0 | O79: 0 | P79: << Final remaining cash should equal 0.
C81: Final LP IRR | D81: =XIRR(D76:O76,cf_dates) -> 0.2689675629
C82: Final GP IRR | D82: =XIRR(D77:O77,cf_dates) -> 0.9526507735

Sheet Three Tiers
C1: Calculation of Three Tier Carried Interest Model Using Excel and Custom VBA Function
C2: Created by: | D2: Scott Dunphy | N2: The function, called CarriedInterest, is entered in cell N6. The inputs are dealDates, dealCashFlows, hurdleRate1, lpDistRatio1, gpDistRatio1, hurdleRate2, lpDistRatio2, gpDistRatio2, hurdleRate3, lpDistRatio3, gpDistRatio3, lpDistRatio4, gpDistRatio4). The function returns all the summary statistics shown below in a 6 x 4 matrix. To view the code behind the custom function press Alt + F11 to enter the VBA code editor.
C3: ="In this three tier model the cash flows are split "&TEXT(tier1_lp_split,"0%")&" to the LP and "&TEXT(tier1_gp_split,"0%")&" to the GP until the LP earns an "&TEXT(tier1_return,"0%")&" return on their investment. Next, remaining cash flows are split "&TEXT(tier2_lp_split,"0%")&" to the LP and "&TEXT(tier2_gp_split,"0%")&" to the GP, until the LP earns a "&TEXT(tier2_return,"0%")&" return on their investment. Finally, all remaining cash flow is split "&TEXT(tier4_lp_split,"0%")&" to the LP and "&TEXT(tier4_gp_split,"0%")&" to the GP. To do this we need to skip or ignore the third tier by setting the third tier inputs equal to the second tier inputs. A two tier model could similarly be calculated by setting the second and third tier inputs equal to the first tier inputs." -> In this three tier model the cash flows are split 95% to the LP and 5% to the GP until the LP earns an 8% return on their investment. Next, remaining cash flows are split 80% to the LP and 20% to the GP, until the LP earns a 12% return on their investment. Finally, all remaining cash flow is split 50% to the LP and 50% to the GP. To do this we need to skip or ignore the third tier by setting the third tier inputs equal to the second tier inputs. A two tier model could similarly be calculated by setting the second and third tier inputs equal to the first tier inputs.
E5: Distributions Ratios | I5: MANUAL CALC OUTPUT | N5: CARRIED INTEREST FUNCTION OUTPUT | S5: CHECKS
C6: Tier | D6: Hurdle Rate | E6: LP Split | F6: GP Split | G6: Daily Hurdle Rate | I6: Investor | J6: Deal | K6: LP | L6: GP | N6: =CarriedInterest(cf_dates,deal_cf,tier1_return,tier1_lp_split,tier1_gp_split,tier2_return,tier2_lp_split,tier2_gp_split,tier3_return,tier3_lp_split,tier3_gp_split,tier4_lp_split,tier4_gp_split) -> Investor | O6: Deal | P6: LP | Q6: GP | S6: Investor | T6: Deal | U6: LP | V6: GP
C7: First Tier | D7: 0.08 | E7: 0.95 | F7: =1-E7 -> 0.05 | G7: =(1+tier1_return)^(1/365)-1 -> 0.0002108743984 | I7: Profit | J7: =J10-J9 -> 289000000 | K7: =K10-K9 -> 169470598 | L7: =L10-L9 -> 119529402 | N7: Profit | O7: 289000000 | P7: 169470598 | Q7: 119529402 | S7: Profit | T7: =J7-O7 -> 0 | U7: =K7-P7 -> 0.00131881237 | V7: 0.001326456666
C8: Second Tier | D8: 0.12 | E8: 0.8 | F8: =1-E8 -> 0.2 | G8: =(1+tier2_return)^(1/365)-1 -> 0.0003105377557 | I8: XIRR | J8: =XIRR(deal_cf,cf_dates) -> 0.3551523268 | K8: =D81 -> 0.2635240257 | L8: =D82 -> 0.9700441718 | N8: XIRR | O8: 0.3551523268 | P8: 0.2635240257 | Q8: 0.9700441718 | S8: XIRR | T8: =J8-O8 -> 0 | U8: 0 | V8: 0
C9: Third Tier | D9: 0.12 | E9: 0.8 | F9: =1-E9 -> 0.2 | G9: =(1+tier3_return)^(1/365)-1 -> 0.0003105377557 | I9: Contributions | J9: =-SUMIF(deal_cf,"<0",deal_cf) -> 91000000 | K9: =-SUMIF(D76:O76,"<0",D76:O76) -> 86450000 | L9: =-SUMIF(D77:O77,"<0",D77:O77) -> 4550000 | N9: Contributions | O9: 91000000 | P9: 86450000 | Q9: 4550000 | S9: Contributions | T9: =J9-O9 -> 0 | U9: 0 | V9: 0
C10: Fourth Tier | D10: N/A | E10: 0.5 | F10: =1-E10 -> 0.5 | G10: N/A | I10: Distributions | J10: =SUMIF(deal_cf,">0",deal_cf) -> 380000000 | K10: =SUMIF(D76:O76,">0",D76:O76) -> 255920598 | L10: =SUMIF(D77:O77,">0",D77:O77) -> 124079402 | N10: Distributions | O10: 380000000 | P10: 255920598 | Q10: 124079402 | S10: Distributions | T10: =J10-O10 -> 0 | U10: 0.00131881237 | V10: 0.001326456666
I11: Multiple | J11: =J10/J9 -> 4.175824176 | K11: =K10/K9 -> 2.960330803 | L11: =L10/L9 -> 27.27019825 | N11: Multiple | O11: 4.175824176 | P11: 2.960330803 | Q11: 27.27019825 | S11: Multiple | T11: =J11-O11 -> 0 | U11: 1.525490845e-11 | V11: 2.915285791e-10
C13: Cash Flow Date | D13: 2023-06-30 | E13: 2023-07-25 | F13: 2023-10-29 | G13: 2024-03-15 | H13: 2025-03-14 | I13: 2025-09-10 | J13: 2026-03-03 | K13: 2026-07-07 | L13: 2027-04-07 | M13: 2027-05-16 | N13: 2027-12-31 | O13: 2028-07-22
C15: Property Cash Flows | D15: -50000000 | E15: -30000000 | F15: -1000000 | G15: 0 | H15: -10000000 | I15: 5000000 | J15: 5000000 | K15: 5000000 | L15: 5000000 | M15: 5000000 | N15: 5000000 | O15: 350000000
C17: LP Contribution | D17: =MIN(0,D15*$E$7) -> -47500000 | E17: -28500000 | F17: -950000 | G17: 0 | H17: -9500000 | I17: 0 | J17: 0 | K17: 0 | L17: 0 | M17: 0 | N17: 0 | O17: 0
C18: GP Contribution | D18: =MIN(0,D15-D17) -> -2500000 | E18: =MIN(0,E15-E17) -> -1500000 | F18: =MIN(0,F15-F17) -> -50000 | G18: =MIN(0,G15-G17) -> 0 | H18: -500000 | I18: 0 | J18: 0 | K18: 0 | L18: 0 | M18: 0 | N18: 0 | O18: 0
C20: First Tier
C21: Day Count | D21: 0 | E21: =E13-D13 -> 25 | F21: =F13-E13 -> 96 | G21: =G13-F13 -> 138 | H21: 364 | I21: 180 | J21: 174 | K21: 126 | L21: 274 | M21: 39 | N21: 229 | O21: 204
C23: Beginning Balance | D23: 0 | E23: =D27 -> 47500000 | F23: =E27 -> 76251048.04 | G23: 78760234.26 | H23: 81085635.71 | I23: =H27 -> 97054023.67 | J23: 96058346.89 | K23: 94898008.76 | L23: 92702988.84 | M23: =L27 -> 93466498.26 | N23: 89488264.06 | O23: 89165236.41
C24: Contributions | D24: =MAX(0,-D$17) -> 47500000 | E24: =MAX(0,-E$17) -> 28500000 | F24: 950000 | G24: 0 | H24: 9500000 | I24: 0 | J24: 0 | K24: 0 | L24: 0 | M24: 0 | N24: 0 | O24: 0
C25: Return Accrual | D25: =D23*((1+tier1_daily)^D21-1) -> 0 | E25: 251048.0429 | F25: 1559186.218 | G25: 2325401.454 | H25: 6468387.955 | I25: 3754323.221 | J25: 3589661.867 | K25: 2554980.081 | L25: 5513509.425 | M25: 771765.7927 | N25: 4426972.357 | O25: 3919021.261
C26: Tier 1 Distribution | D26: =-MIN(SUM(D23:D25),MAX(0,D15*tier1_lp_split)) -> 0 | E26: 0 | F26: 0 | G26: 0 | H26: 0 | I26: -4750000 | J26: -4750000 | K26: -4750000 | L26: -4750000 | M26: -4750000 | N26: -4750000 | O26: -93084257.67
C27: Ending Balance | D27: =SUM(D23:D26) -> 47500000 | E27: =SUM(E23:E26) -> 76251048.04 | F27: 78760234.26 | G27: 81085635.71 | H27: 97054023.67 | I27: 96058346.89 | J27: 94898008.76 | K27: 92702988.84 | L27: 93466498.26 | M27: 89488264.06 | N27: 89165236.41 | O27: 0
C29: LP Tier 1 Cash Flow | D29: =-D24-D26 -> -47500000 | E29: =-E24-E26 -> -28500000 | F29: -950000 | G29: 0 | H29: -9500000 | I29: 4750000 | J29: 4750000 | K29: 4750000 | L29: 4750000 | M29: 4750000 | N29: 4750000 | O29: 93084257.67
C30: GP Tier 2 Cash Flow | D30: =D29/tier1_lp_split*tier1_gp_split -> -2500000 | E30: -1500000 | F30: -50000 | G30: 0 | H30: -500000 | I30: 250000 | J30: 250000 | K30: 250000 | L30: 250000 | M30: 250000 | N30: 250000 | O30: 4899171.457
C32: LP IRR Check | D32: =XIRR(D29:O29,cf_dates) -> 0.07999999821 | E32: =ROUND(D32-tier1_return,6) -> 0
C33: GP IRR Check | D33: =XIRR(D30:O30,cf_dates) -> 0.07999999821 | E33: =ROUND(D33-tier1_return,6) -> 0
C35: Remaining Cash Flow | D35: =D15-D29-D30 -> 0 | E35: =E15-E29-E30 -> 0 | F35: 0 | G35: 0 | H35: 4.656612873e-10 | I35: -2.328306437e-10 | J35: -2.328306437e-10 | K35: -2.328306437e-10 | L35: -2.328306437e-10 | M35: -2.328306437e-10 | N35: -2.328306437e-10 | O35: 252016570.9
C37: Second Tier
C38: Day Count | D38: 0 | E38: =E13-D13 -> 25 | F38: =F13-E13 -> 96 | G38: 138 | H38: 364 | I38: 180 | J38: 174 | K38: 126 | L38: 274 | M38: 39 | N38: 229 | O38: 204
C40: Beginning Balance | D40: 0 | E40: =D45 -> 47500000 | F40: 76370141.04 | G40: 79630770.98 | H40: 83116907.93 | I40: 102562037.6 | J40: 103707238.4 | K40: 104714149.7 | L40: 104141931.6 | M40: 108639504.2 | N40: 105213027.2 | O40: 108216264.7
C41: Contributions | D41: =MAX(0,-D$17) -> 47500000 | E41: =MAX(0,-E$17) -> 28500000 | F41: 950000 | G41: 0 | H41: 9500000 | I41: 0 | J41: 0 | K41: 0 | L41: 0 | M41: 0 | N41: 0 | O41: 0
C42: Return Accrual | D42: =D40*((1+tier2_daily)^D38-1) -> 0 | E42: 370141.0423 | F42: 2310629.938 | G42: 3486136.946 | H42: 9945129.675 | I42: 5895200.798 | J42: 5756911.299 | K42: 4177781.885 | L42: 9247572.665 | M42: 1323522.954 | N42: 7753237.539 | O42: 7076139.185
C43: Tier 1 Distribution | D43: =D26 -> 0 | E43: =E26 -> 0 | F43: 0 | G43: 0 | H43: 0 | I43: -4750000 | J43: -4750000 | K43: -4750000 | L43: -4750000 | M43: -4750000 | N43: -4750000 | O43: -93084257.67
C44: Tier 2 Distribution | D44: =-MIN(D35*tier2_lp_split,SUM(D40:D43)) -> 0 | E44: 0 | F44: 0 | G44: 0 | H44: -3.725290298e-10 | I44: 1.862645149e-10 | J44: 1.862645149e-10 | K44: 1.862645149e-10 | L44: 1.862645149e-10 | M44: 1.862645149e-10 | N44: 1.862645149e-10 | O44: -22208146.25
C45: Ending Balance | D45: =SUM(D40:D44) -> 47500000 | E45: =SUM(E40:E44) -> 76370141.04 | F45: 79630770.98 | G45: 83116907.93 | H45: 102562037.6 | I45: 103707238.4 | J45: 104714149.7 | K45: 104141931.6 | L45: 108639504.2 | M45: 105213027.2 | N45: 108216264.7 | O45: 0
C47: LP Tier 2 Cash Flow | D47: =-D41-D44-D43 -> -47500000 | E47: =-E41-E44-E43 -> -28500000 | F47: -950000 | G47: 0 | H47: -9500000 | I47: 4750000 | J47: 4750000 | K47: 4750000 | L47: 4750000 | M47: 4750000 | N47: 4750000 | O47: 115292403.9
C48: GP Tier 2 Cash Flow | D48: =D30-D44/tier2_lp_split*tier2_gp_split -> -2500000 | E48: -1500000 | F48: -50000 | G48: 0 | H48: -500000 | I48: 250000 | J48: 250000 | K48: 250000 | L48: 250000 | M48: 250000 | N48: 250000 | O48: 10451208.02
C50: LP IRR Check | D50: =XIRR(D47:O47,cf_dates) -> 0.1199999988 | E50: =ROUND(D50-tier2_return,6) -> 0
C51: GP IRR Check | D51: =XIRR(D48:O48,cf_dates) -> 0.2328151405 | E51: =ROUND(D51-tier2_return,6) -> 0.112815 | F51: << Not expected to tie unless all the GP splits are the same for all tiers. Making all the GP splits the same is used to verify the model is calculating correctly.
C53: Remaining Cash Flow | D53: =D15-D47-D48 -> 0 | E53: =E15-E47-E48 -> 0 | F53: 0 | G53: 0 | H53: 0 | I53: 0 | J53: 0 | K53: 0 | L53: 0 | M53: 0 | N53: 0 | O53: 224256388.1
C55: Third Tier
C56: Day Count | D56: 0 | E56: =E13-D13 -> 25 | F56: =F13-E13 -> 96 | G56: 138 | H56: 364 | I56: 180 | J56: 174 | K56: 126 | L56: 274 | M56: 39 | N56: 229 | O56: 204
C58: Beginning Balance | D58: 0 | E58: =D64 -> 47500000 | F58: 76370141.04 | G58: 79630770.98 | H58: 83116907.93 | I58: 102562037.6 | J58: 103707238.4 | K58: 104714149.7 | L58: 104141931.6 | M58: 108639504.2 | N58: 105213027.2 | O58: 108216264.7
C59: Contributions | D59: =MAX(0,-D$17) -> 47500000 | E59: =MAX(0,-E$17) -> 28500000 | F59: 950000 | G59: 0 | H59: 9500000 | I59: 0 | J59: 0 | K59: 0 | L59: 0 | M59: 0 | N59: 0 | O59: 0
C60: Return Accrual | D60: =D58*((1+tier3_daily)^D56-1) -> 0 | E60: 370141.0423 | F60: 2310629.938 | G60: 3486136.946 | H60: 9945129.675 | I60: 5895200.798 | J60: 5756911.299 | K60: 4177781.885 | L60: 9247572.665 | M60: 1323522.954 | N60: 7753237.539 | O60: 7076139.185
C61: Tier 1 Distribution | D61: =D43 -> 0 | E61: =E43 -> 0 | F61: 0 | G61: 0 | H61: 0 | I61: -4750000 | J61: -4750000 | K61: -4750000 | L61: -4750000 | M61: -4750000 | N61: -4750000 | O61: -93084257.67
C62: Tier 2 Distribution | D62: =D44 -> 0 | E62: 0 | F62: 0 | G62: 0 | H62: -3.725290298e-10 | I62: 1.862645149e-10 | J62: 1.862645149e-10 | K62: 1.862645149e-10 | L62: 1.862645149e-10 | M62: 1.862645149e-10 | N62: 1.862645149e-10 | O62: -22208146.25
C63: Tier 3 Distribution | D63: =-MIN(D53*tier3_lp_split,SUM(D58:D62)) -> 0 | E63: 0 | F63: 0 | G63: 0 | H63: 0 | I63: 0 | J63: 0 | K63: 0 | L63: 0 | M63: 0 | N63: 0 | O63: 0
C64: Ending Balance | D64: =SUM(D58:D63) -> 47500000 | E64: =SUM(E58:E63) -> 76370141.04 | F64: 79630770.98 | G64: 83116907.93 | H64: 102562037.6 | I64: 103707238.4 | J64: 104714149.7 | K64: 104141931.6 | L64: 108639504.2 | M64: 105213027.2 | N64: 108216264.7 | O64: 0
C66: LP Tier 2 Cash Flow | D66: =-D59-SUM(D61:D63) -> -47500000 | E66: =E47-E63 -> -28500000 | F66: -950000 | G66: 0 | H66: -9500000 | I66: 4750000 | J66: 4750000 | K66: 4750000 | L66: 4750000 | M66: 4750000 | N66: 4750000 | O66: 115292403.9
C67: GP Tier 2 Cash Flow | D67: =D48-D63/tier3_lp_split*tier3_gp_split -> -2500000 | E67: -1500000 | F67: -50000 | G67: 0 | H67: -500000 | I67: 250000 | J67: 250000 | K67: 250000 | L67: 250000 | M67: 250000 | N67: 250000 | O67: 10451208.02
C69: LP IRR Check | D69: =XIRR(D66:O66,cf_dates) -> 0.1199999988 | E69: =ROUND(D69-tier3_return,6) -> 0
C70: GP IRR Check | D70: =XIRR(D67:O67,cf_dates) -> 0.2328151405 | E70: =ROUND(D70-tier3_return,6) -> 0.112815 | F70: << Not expected to tie unless all the GP splits are the same for all tiers. Making all the GP splits the same is used to verify the model is calculating correctly.
C72: Remaining Cash Flow | D72: =D15-D66-D67 -> 0 | E72: =E15-E66-E67 -> 0 | F72: 0 | G72: 0 | H72: 0 | I72: 0 | J72: 0 | K72: 0 | L72: 0 | M72: 0 | N72: 0 | O72: 224256388.1
C74: Fourth Tier / Final Cash Flow
C76: Final LP Cash Flow | D76: =D66+tier4_lp_split*D72 -> -47500000 | E76: -28500000 | F76: -950000 | G76: 0 | H76: -9500000 | I76: 4750000 | J76: 4750000 | K76: 4750000 | L76: 4750000 | M76: 4750000 | N76: 4750000 | O76: 227420598
C77: Final GP Cash Flow | D77: =D67+tier4_gp_split*D72 -> -2500000 | E77: -1500000 | F77: -50000 | G77: 0 | H77: -500000 | I77: 250000 | J77: 250000 | K77: 250000 | L77: 250000 | M77: 250000 | N77: 250000 | O77: 122579402
C79: Remaining Cash Flow | D79: =D15-D76-D77 -> 0 | E79: =E15-E76-E77 -> 0 | F79: 0 | G79: 0 | H79: 0 | I79: 0 | J79: 0 | K79: 0 | L79: 0 | M79: 0 | N79: 0 | O79: 0 | P79: << Final remaining cash should equal 0.
C81: Final LP IRR | D81: =XIRR(D76:O76,cf_dates) -> 0.2635240257
C82: Final GP IRR | D82: =XIRR(D77:O77,cf_dates) -> 0.9700441718

Sheet No GP Co-invest
C1: Calculation of Carried Interest without GP Co-invest Using Excel and Custom VBA Function
C2: Created by: | D2: Scott Dunphy | N2: The function, called CarriedInterest, is entered in cell N6. The inputs are dealDates, dealCashFlows, hurdleRate1, lpDistRatio1, gpDistRatio1, hurdleRate2, lpDistRatio2, gpDistRatio2, hurdleRate3, lpDistRatio3, gpDistRatio3, lpDistRatio4, gpDistRatio4). The function returns all the summary statistics shown below in a 6 x 4 matrix. To view the code behind the custom function press Alt + F11 to enter the VBA code editor.
C3: ="In this model the GP does not co-invest in the deal but is still entitled to carried interest after the the LP earns an "&TEXT(tier1_return,"0%")&" return on their investment. Because the GP can't have a 0% split due to divide by 0 errors, we enter the LP's First Tier split as 99.9999999%. After the first tier, remaining cash flows are split "&TEXT(tier2_lp_split,"0%")&" to the LP and "&TEXT(tier2_gp_split,"0%")&" to the GP, until the LP earns a "&TEXT(tier2_return,"0%")&" return on their investment. Next, remaining cash flows are split "&TEXT(tier3_lp_split,"0%")&" to the LP and "&TEXT(tier3_gp_split,"0%")&" to the GP, until the LP earns a "&TEXT(tier3_return,"0%")&" return on their investment. Finally, all remaining cash flow is split "&TEXT(tier4_lp_split,"0%")&" to the LP and "&TEXT(tier4_gp_split,"0%")&" to the GP." -> In this model the GP does not co-invest in the deal but is still entitled to carried interest after the the LP earns an 8% return on their investment. Because the GP can't have a 0% split due to divide by 0 errors, we enter the LP's First Tier split as 99.9999999%. After the first tier, remaining cash flows are split 90% to the LP and 10% to the GP, until the LP earns a 12% return on their investment. Next, remaining cash flows are split 80% to the LP and 20% to the GP, until the LP earns a 15% return on their investment. Finally, all remaining cash flow is split 70% to the LP and 30% to the GP.
E5: Distributions Ratios | I5: MANUAL CALC OUTPUT | N5: CARRIED INTEREST FUNCTION OUTPUT | S5: CHECKS
C6: Tier | D6: Hurdle Rate | E6: LP Split | F6: GP Split | G6: Daily Hurdle Rate | I6: Investor | J6: Deal | K6: LP | L6: GP | N6: =CarriedInterest(cf_dates,deal_cf,tier1_return,tier1_lp_split,tier1_gp_split,tier2_return,tier2_lp_split,tier2_gp_split,tier3_return,tier3_lp_split,tier3_gp_split,tier4_lp_split,tier4_gp_split) -> Investor | O6: Deal | P6: LP | Q6: GP | S6: Investor | T6: Deal | U6: LP | V6: GP
C7: First Tier | D7: 0.08 | E7: 0.999999999 | F7: =1-E7 -> 9.999999717e-10 | G7: =(1+tier1_return)^(1/365)-1 -> 0.0002108743984 | I7: Profit | J7: =J10-J9 -> 239000000 | K7: =K10-K9 -> 186088176.5 | L7: =L10-L9 -> 52911823.52 | N7: Profit | O7: 239000000 | P7: 186088176.5 | Q7: 52911823.52 | S7: Profit | T7: =J7-O7 -> 0 | U7: =K7-P7 -> 0.002840042114 | V7: 0.001218177378
C8: Second Tier | D8: 0.12 | E8: 0.9 | F8: =1-E8 -> 0.1 | G8: =(1+tier2_return)^(1/365)-1 -> 0.0003105377557 | I8: XIRR | J8: =XIRR(deal_cf,cf_dates) -> 0.3169521749 | K8: =D81 -> 0.2708400548 | L8: =D82 -> 55.10440865 | N8: XIRR | O8: 0.3169521749 | P8: 0.2708400548 | Q8: 55.10440865 | S8: XIRR | T8: =J8-O8 -> 0 | U8: 0 | V8: 0
C9: Third Tier | D9: 0.15 | E9: 0.8 | F9: =1-E9 -> 0.2 | G9: =(1+tier3_return)^(1/365)-1 -> 0.0003829827503 | I9: Contributions | J9: =-SUMIF(deal_cf,"<0",deal_cf) -> 91000000 | K9: =-SUMIF(D76:O76,"<0",D76:O76) -> 90999999.91 | L9: =-SUMIF(D77:O77,"<0",D77:O77) -> 0.09099999582 | N9: Contributions | O9: 91000000 | P9: 90999999.91 | Q9: 0.09099999743 | S9: Contributions | T9: =J9-O9 -> 0 | U9: 0 | V9: -1.603175731e-09
C10: Fourth Tier | D10: N/A | E10: 0.7 | F10: =1-E10 -> 0.3 | G10: N/A | I10: Distributions | J10: =SUMIF(deal_cf,">0",deal_cf) -> 330000000 | K10: =SUMIF(D76:O76,">0",D76:O76) -> 277088176.4 | L10: =SUMIF(D77:O77,">0",D77:O77) -> 52911823.62 | N10: Distributions | O10: 330000000 | P10: 277088176.4 | Q10: 52911823.61 | S10: Distributions | T10: =J10-O10 -> 0 | U10: 0.002840042114 | V10: 0.001218177378
I11: Multiple | J11: =J10/J9 -> 3.626373626 | K11: =K10/K9 -> 3.044925018 | L11: =L10/L9 -> 581448637.8 | N11: Multiple | O11: 3.626373626 | P11: 3.044925018 | Q11: 581448627.6 | S11: Multiple | T11: =J11-O11 -> 0 | U11: 3.12092574e-11 | V11: 10.25695097
C13: Cash Flow Date | D13: 2023-06-30 | E13: 2023-07-25 | F13: 2023-10-29 | G13: 2024-03-15 | H13: 2025-03-14 | I13: 2025-09-10 | J13: 2026-03-03 | K13: 2026-07-07 | L13: 2027-04-07 | M13: 2027-05-16 | N13: 2027-12-31 | O13: 2028-07-22
C15: Property Cash Flows | D15: -50000000 | E15: -30000000 | F15: -1000000 | G15: 0 | H15: -10000000 | I15: 5000000 | J15: 5000000 | K15: 5000000 | L15: 5000000 | M15: 5000000 | N15: 5000000 | O15: 300000000
C17: LP Contribution | D17: =MIN(0,D15*$E$7) -> -49999999.95 | E17: -29999999.97 | F17: -999999.999 | G17: 0 | H17: -9999999.99 | I17: 0 | J17: 0 | K17: 0 | L17: 0 | M17: 0 | N17: 0 | O17: 0
C18: GP Contribution | D18: =MIN(0,D15-D17) -> -0.04999999702 | E18: =MIN(0,E15-E17) -> -0.02999999747 | F18: =MIN(0,F15-F17) -> -0.0009999999311 | G18: =MIN(0,G15-G17) -> 0 | H18: -0.009999999776 | I18: 0 | J18: 0 | K18: 0 | L18: 0 | M18: 0 | N18: 0 | O18: 0
C20: First Tier
C21: Day Count | D21: 0 | E21: =E13-D13 -> 25 | F21: =F13-E13 -> 96 | G21: =G13-F13 -> 138 | H21: 364 | I21: 180 | J21: 174 | K21: 126 | L21: 274 | M21: 39 | N21: 229 | O21: 204
C23: Beginning Balance | D23: 0 | E23: =D27 -> 49999999.95 | F23: =E27 -> 80264261.02 | G23: 82905509.66 | H23: 85353300.67 | I23: =H27 -> 102162130.1 | J23: 101114049.3 | K23: 99892640.7 | L23: 97582093.42 | M23: =L27 -> 98385787.55 | N23: 94198172.6 | O23: 93858143.5
C24: Contributions | D24: =MAX(0,-D$17) -> 49999999.95 | E24: =MAX(0,-E$17) -> 29999999.97 | F24: 999999.999 | G24: 0 | H24: 9999999.99 | I24: 0 | J24: 0 | K24: 0 | L24: 0 | M24: 0 | N24: 0 | O24: 0
C25: Return Accrual | D25: =D23*((1+tier1_daily)^D21-1) -> 0 | E25: 264261.0975 | F25: 1641248.648 | G25: 2447791.002 | H25: 6808829.42 | I25: 3951919.176 | J25: 3778591.435 | K25: 2689452.714 | L25: 5803694.125 | M25: 812385.0441 | N25: 4659970.898 | O25: 4125285.534
C26: Tier 1 Distribution | D26: =-MIN(SUM(D23:D25),MAX(0,D15*tier1_lp_split)) -> 0 | E26: 0 | F26: 0 | G26: 0 | H26: 0 | I26: -4999999.995 | J26: -4999999.995 | K26: -4999999.995 | L26: -4999999.995 | M26: -4999999.995 | N26: -4999999.995 | O26: -97983429.03
C27: Ending Balance | D27: =SUM(D23:D26) -> 49999999.95 | E27: =SUM(E23:E26) -> 80264261.02 | F27: 82905509.66 | G27: 85353300.67 | H27: 102162130.1 | I27: 101114049.3 | J27: 99892640.7 | K27: 97582093.42 | L27: 98385787.55 | M27: 94198172.6 | N27: 93858143.5 | O27: 0
C29: LP Tier 1 Cash Flow | D29: =-D24-D26 -> -49999999.95 | E29: =-E24-E26 -> -29999999.97 | F29: -999999.999 | G29: 0 | H29: -9999999.99 | I29: 4999999.995 | J29: 4999999.995 | K29: 4999999.995 | L29: 4999999.995 | M29: 4999999.995 | N29: 4999999.995 | O29: 97983429.03
C30: GP Tier 2 Cash Flow | D30: =D29/tier1_lp_split*tier1_gp_split -> -0.04999999859 | E30: -0.02999999915 | F30: -0.0009999999717 | G30: 0 | H30: -0.009999999717 | I30: 0.004999999859 | J30: 0.004999999859 | K30: 0.004999999859 | L30: 0.004999999859 | M30: 0.004999999859 | N30: 0.004999999859 | O30: 0.09798342636
C32: LP IRR Check | D32: =XIRR(D29:O29,cf_dates) -> 0.07999999821 | E32: =ROUND(D32-tier1_return,6) -> 0
C33: GP IRR Check | D33: =XIRR(D30:O30,cf_dates) -> 0.07999999821 | E33: =ROUND(D33-tier1_return,6) -> 0
C35: Remaining Cash Flow | D35: =D15-D29-D30 -> 1.566135666e-09 | E35: =E15-E29-E30 -> 1.684739459e-09 | F35: 4.063593906e-11 | G35: 0 | H35: -5.930189673e-11 | I35: 2.965094836e-11 | J35: 2.965094836e-11 | K35: 2.965094836e-11 | L35: 2.965094836e-11 | M35: 2.965094836e-11 | N35: 2.965094836e-11 | O35: 202016570.9
C37: Second Tier
C38: Day Count | D38: 0 | E38: =E13-D13 -> 25 | F38: =F13-E13 -> 96 | G38: 138 | H38: 364 | I38: 180 | J38: 174 | K38: 126 | L38: 274 | M38: 39 | N38: 229 | O38: 204
C40: Beginning Balance | D40: 0 | E40: =D45 -> 49999999.95 | F40: 80389622.07 | G40: 83821864.11 | H40: 87491481.94 | I40: 107960039.5 | J40: 109165514 | K40: 110225420.6 | L40: 109623085.8 | M40: 114357372.8 | N40: 110750554.8 | O40: 113911857.5
C41: Contributions | D41: =MAX(0,-D$17) -> 49999999.95 | E41: =MAX(0,-E$17) -> 29999999.97 | F41: 999999.999 | G41: 0 | H41: 9999999.99 | I41: 0 | J41: 0 | K41: 0 | L41: 0 | M41: 0 | N41: 0 | O41: 0
C42: Return Accrual | D42: =D40*((1+tier2_daily)^D38-1) -> 0 | E42: 389622.1494 | F42: 2432242.038 | G42: 3669617.835 | H42: 10468557.54 | I42: 6205474.518 | J42: 6059906.624 | K42: 4397665.138 | L42: 9734287.006 | M42: 1393182.056 | N42: 8161302.665 | O42: 7448567.556
C43: Tier 1 Distribution | D43: =D26 -> 0 | E43: =E26 -> 0 | F43: 0 | G43: 0 | H43: 0 | I43: -4999999.995 | J43: -4999999.995 | K43: -4999999.995 | L43: -4999999.995 | M43: -4999999.995 | N43: -4999999.995 | O43: -97983429.03
C44: Tier 2 Distribution | D44: =-MIN(D35*tier2_lp_split,SUM(D40:D43)) -> -1.409522099e-09 | E44: -1.516265513e-09 | F44: -3.657234515e-11 | G44: 0 | H44: 5.337170705e-11 | I44: -2.668585353e-11 | J44: -2.668585353e-11 | K44: -2.668585353e-11 | L44: -2.668585353e-11 | M44: -2.668585353e-11 | N44: -2.668585353e-11 | O44: =-MIN(O35*tier2_lp_split,SUM(O40:O43)) -> -23376996.03
C45: Ending Balance | D45: =SUM(D40:D44) -> 49999999.95 | E45: =SUM(E40:E44) -> 80389622.07 | F45: 83821864.11 | G45: 87491481.94 | H45: 107960039.5 | I45: 109165514 | J45: 110225420.6 | K45: 109623085.8 | L45: 114357372.8 | M45: 110750554.8 | N45: 113911857.5 | O45: 0
C47: LP Tier 2 Cash Flow | D47: =-D41-D44-D43 -> -49999999.95 | E47: =-E41-E44-E43 -> -29999999.97 | F47: -999999.999 | G47: 0 | H47: -9999999.99 | I47: 4999999.995 | J47: 4999999.995 | K47: 4999999.995 | L47: 4999999.995 | M47: 4999999.995 | N47: 4999999.995 | O47: 121360425.1
C48: GP Tier 2 Cash Flow | D48: =D30-D44/tier2_lp_split*tier2_gp_split -> -0.04999999843 | E48: -0.02999999898 | F48: -0.0009999999677 | G48: 0 | H48: -0.009999999723 | I48: 0.004999999862 | J48: 0.004999999862 | K48: 0.004999999862 | L48: 0.004999999862 | M48: 0.004999999862 | N48: 0.004999999862 | O48: 2597444.102
C50: LP IRR Check | D50: =XIRR(D47:O47,cf_dates) -> 0.1199999988 | E50: =ROUND(D50-tier2_return,6) -> 0
C51: GP IRR Check | D51: =XIRR(D48:O48,cf_dates) -> 29.86022587 | E51: =ROUND(D51-tier2_return,6) -> 29.740226 | F51: << Not expected to tie unless all the GP splits are the same for all tiers. Making all the GP splits the same is used to verify the model is calculating correctly.
C53: Remaining Cash Flow | D53: =D15-D47-D48 -> 1.409522096e-09 | E53: =E15-E47-E48 -> 1.516265512e-09 | F53: 3.65723452e-11 | G53: 0 | H53: -5.337170636e-11 | I53: 2.668585318e-11 | J53: 2.668585318e-11 | K53: 2.668585318e-11 | L53: 2.668585318e-11 | M53: 2.668585318e-11 | N53: 2.668585318e-11 | O53: 176042130.8
C55: Third Tier
C56: Day Count | D56: 0 | E56: =E13-D13 -> 25 | F56: =F13-E13 -> 96 | G56: 138 | H56: 364 | I56: 180 | J56: 174 | K56: 126 | L56: 274 | M56: 39 | N56: 229 | O56: 204
C58: Beginning Balance | D58: 0 | E58: =D64 -> 49999999.95 | F58: 80480934.97 | G58: 84494405.45 | H58: 89079285.91 | I58: 112401960.6 | J58: 115422341.7 | K58: 118374467.1 | L58: 119225646.1 | M58: 127414223.7 | N58: 124331238.1 | O58: 130725645.9
C59: Contributions | D59: =MAX(0,-D$17) -> 49999999.95 | E59: =MAX(0,-E$17) -> 29999999.97 | F59: 999999.999 | G59: 0 | H59: 9999999.99 | I59: 0 | J59: 0 | K59: 0 | L59: 0 | M59: 0 | N59: 0 | O59: 0
C60: Return Accrual | D60: =D58*((1+tier3_daily)^D56-1) -> 0 | E60: 480935.0479 | F60: 3013470.487 | G60: 4584880.451 | H60: 13322674.7 | I60: 8020381.103 | J60: 7952125.427 | K60: 5851178.94 | L60: 13188577.6 | M60: 1917014.419 | N60: 11394407.82 | O60: 10620857.26
C61: Tier 1 Distribution | D61: =D43 -> 0 | E61: =E43 -> 0 | F61: 0 | G61: 0 | H61: 0 | I61: -4999999.995 | J61: -4999999.995 | K61: -4999999.995 | L61: -4999999.995 | M61: -4999999.995 | N61: -4999999.995 | O61: -97983429.03
C62: Tier 2 Distribution | D62: =D44 -> -1.409522099e-09 | E62: -1.516265513e-09 | F62: -3.657234515e-11 | G62: 0 | H62: 5.337170705e-11 | I62: -2.668585353e-11 | J62: -2.668585353e-11 | K62: -2.668585353e-11 | L62: -2.668585353e-11 | M62: -2.668585353e-11 | N62: -2.668585353e-11 | O62: -23376996.03
C63: Tier 3 Distribution | D63: =-MIN(D53*tier3_lp_split,SUM(D58:D62)) -> -1.127617677e-09 | E63: -1.21301241e-09 | F63: -2.925787616e-11 | G63: 0 | H63: 4.269736509e-11 | I63: -2.134868254e-11 | J63: -2.134868254e-11 | K63: -2.134868254e-11 | L63: -2.134868254e-11 | M63: -2.134868254e-11 | N63: -2.134868254e-11 | O63: -19986078.13
C64: Ending Balance | D64: =SUM(D58:D63) -> 49999999.95 | E64: =SUM(E58:E63) -> 80480934.97 | F64: 84494405.45 | G64: 89079285.91 | H64: 112401960.6 | I64: 115422341.7 | J64: 118374467.1 | K64: 119225646.1 | L64: 127414223.7 | M64: 124331238.1 | N64: 130725645.9 | O64: 0
C66: LP Tier 2 Cash Flow | D66: =-D59-SUM(D61:D63) -> -49999999.95 | E66: =E47-E63 -> -29999999.97 | F66: -999999.999 | G66: 0 | H66: -9999999.99 | I66: 4999999.995 | J66: 4999999.995 | K66: 4999999.995 | L66: 4999999.995 | M66: 4999999.995 | N66: 4999999.995 | O66: 141346503.2
C67: GP Tier 2 Cash Flow | D67: =D48-D63/tier3_lp_split*tier3_gp_split -> -0.04999999815 | E67: -0.02999999868 | F67: -0.0009999999603 | G67: 0 | H67: -0.009999999734 | I67: 0.004999999867 | J67: 0.004999999867 | K67: 0.004999999867 | L67: 0.004999999867 | M67: 0.004999999867 | N67: 0.004999999867 | O67: 7593963.633
C69: LP IRR Check | D69: =XIRR(D66:O66,cf_dates) -> 0.150000006 | E69: =ROUND(D69-tier3_return,6) -> 0
C70: GP IRR Check | D70: =XIRR(D67:O67,cf_dates) -> 37.17739086 | E70: =ROUND(D70-tier3_return,6) -> 37.027391 | F70: << Not expected to tie unless all the GP splits are the same for all tiers. Making all the GP splits the same is used to verify the model is calculating correctly.
C72: Remaining Cash Flow | D72: =D15-D66-D67 -> 1.12761768e-09 | E72: =E15-E66-E67 -> 1.213012409e-09 | F72: 2.925787607e-11 | G72: 0 | H72: -4.269736474e-11 | I72: 2.134868237e-11 | J72: 2.134868237e-11 | K72: 2.134868237e-11 | L72: 2.134868237e-11 | M72: 2.134868237e-11 | N72: 2.134868237e-11 | O72: 151059533.2
C74: Fourth Tier / Final Cash Flow
C76: Final LP Cash Flow | D76: =D66+tier4_lp_split*D72 -> -49999999.95 | E76: -29999999.97 | F76: -999999.999 | G76: 0 | H76: -9999999.99 | I76: 4999999.995 | J76: 4999999.995 | K76: 4999999.995 | L76: 4999999.995 | M76: 4999999.995 | N76: 4999999.995 | O76: 247088176.4
C77: Final GP Cash Flow | D77: =D67+tier4_gp_split*D72 -> -0.04999999781 | E77: -0.02999999832 | F77: -0.0009999999516 | G77: 0 | H77: -0.009999999747 | I77: 0.004999999873 | J77: 0.004999999873 | K77: 0.004999999873 | L77: 0.004999999873 | M77: 0.004999999873 | N77: 0.004999999873 | O77: 52911823.59
C79: Remaining Cash Flow | D79: =D15-D76-D77 -> 7.893323772e-10 | E79: =E15-E76-E77 -> 8.491086861e-10 | F79: 2.048051334e-11 | G79: 0 | H79: -2.988815445e-11 | I79: 1.494407723e-11 | J79: 1.494407723e-11 | K79: 1.494407723e-11 | L79: 1.494407723e-11 | M79: 1.494407723e-11 | N79: 1.494407723e-11 | O79: 0 | P79: << Final remaining cash should equal 0.
C81: Final LP IRR | D81: =XIRR(D76:O76,cf_dates) -> 0.2708400548
C82: Final GP IRR | D82: =XIRR(D77:O77,cf_dates) -> 55.10440865
